Cogmind - Beta 10 @@@ ROGUE MODE // 2020.09.16 @ 13:33:04 Player: Pimski Result: Destroyed by as-17840 with Assembled Heavy Rifle Performance ------------- Evolutions (1) 500 Regions Visited (5) 1000 Robots Destroyed (68) 340 Value Destroyed (1218) 1218 Prototype IDs (27) 540 Alien Tech Used (0) 0 Bonus (364) 364 TOTAL SCORE: 3962 Bonus ------- High Alert Combat Kills 14 Follower Combat Kills 50 Aligned with FarCom 300 Cogmind --------- Core Integrity 0/400 Matter 300/300 Energy 100/100 System Corruption 8% Temperature Cool (0) Movement Treading (180) Ox1 Location -9/Exiles Parts ------- > --- POWER (1) -------- (None) > --- PROPULSION (2) --- Light Treads > --- UTILITY (4) ------ High-capacity Storage Unit Melee Analysis Suite > --- WEAPON (2) ------- Mining Claw > --- INVENTORY (12) --- Light Treads Light Treads Light Treads Assault Rifle Light Assault Rifle Light Assault Rifle Plasma Cutter Katana Peak State ------------ > --- POWER ------------ Improved Ion Engine > --- PROPULSION ------- Light Treads Improved Flight Unit > --- UTILITY ---------- Large Storage Unit High-capacity Storage Unit Improved Targeting Computer Light Armor Plating > --- WEAPON ----------- Improved Medium Laser Assault Rifle > --- INVENTORY -------- Light Treads Improved Treads Wheel Improved Heat Sink Medium Storage Unit Medium Storage Unit Large Storage Unit Armor Integrity Analyzer Improved Medium Laser Improved Medium Laser Assault Rifle Light Assault Rifle Light Assault Rifle Plasma Cutter Plasma Cutter Plasma Cutter Mining Claw [Rating: 17] Favorites ----------- Power Ion Engine Engine Ion Engine Power Core Light Nuclear Core Propulsion Light Treads Treads Light Treads Leg Aluminum Leg Wheel Wheel Flight Unit Improved Flight Unit Utility Large Storage Unit Storage Large Storage Unit Processor Improved Targeting Computer Protection Light Armor Plating Weapon Heavy Assault Rifle Energy Gun Improved Medium Laser Ballistic Gun Heavy Assault Rifle Slashing Weapon Mining Claw Build | -11 -10 -10 -9 -9 -9 ------- Run | Scr Mat Min Mat Min Exi Slots Evolved 2 | . . . 2 . . Power . | . . . . . . Propulsion . | . . . . . . Utility 2 | . . . 2 . . Weapon . | . . . . . . Parts Attached 38 | 1 8 2 19 2 6 Power 3 | . 1 . 2 . . Engine 2 | . . . 2 . . Core 1 | . 1 . . . . Reactor . | . . . . . . Propulsion 11 | . 2 1 6 . 2 Treads 9 | . 2 . 5 . 2 Leg . | . . . . . . Wheel 1 | . . 1 . . . Hover . | . . . . . . Flight 1 | . . . 1 . . Utility 13 | 1 3 . 6 . 3 Device . | . . . . . . Storage 7 | 1 3 . 3 . . Processor 3 | . . . 1 . 2 Hackware . | . . . . . . Protection 3 | . . . 2 . 1 Artifact . | . . . . . . Weapon 11 | . 2 1 5 2 1 Energy Gun 5 | . 2 . 3 . . Energy Cannon . | . . . . . . Ballistic Gun 5 | . . 1 2 2 . Ballistic Cannon . | . . . . . . Launcher . | . . . . . . Special Weapon . | . . . . . . Impact Weapon . | . . . . . . Slashing Weapon 1 | . . . . . 1 Piercing Weapon . | . . . . . . Special Melee Weapon . | . . . . . . Unidentified Prototypes 1 | . . . 1 . . Parts Lost 18 | . 1 6 1 1 9 Power 2 | . . 1 . . 1 Propulsion 5 | . . 2 . . 3 Utility 4 | . . . 1 . 3 Weapon 7 | . 1 3 . 1 2 Highest Loss Streak 9 | . 1 5 1 1 9 Average Slot Usage (%) 99 | . 100 99 97 99 99 Engine 8 | . 6 . 9 11 10 Core 2 | . 7 13 . . . Treads 20 | . 13 28 22 22 21 Leg 3 | . 14 . . . . Storage 29 | . 28 28 29 33 26 Processor 2 | . . . 3 . 6 Protection 7 | . . . 11 11 10 Energy Gun 6 | . 11 14 9 1 . Ballistic Gun 17 | . 16 14 12 20 21 Naked Turns . | . . . . . . Heaviest Build 78 | 16 57 57 77 78 78 Greatest Support 40 | 20 40 40 40 40 40 Greatest Overweight (x) 5 | . 1 5 3 1 1 Average Overweight (x) . | . . 1 1 1 . Largest Inventory Capacity 24 | 8 18 18 24 24 24 Average Capacity 20 | 6 16 18 22 24 20 Most Carried 24 | 6 18 18 24 24 24 Average Carried 19 | 6 15 17 21 23 20 Final Capacity 24 | 8 18 18 24 24 12 Final Carried 24 | 6 18 17 23 24 8 Class Distribution -------------------- 55% | Scavenger-Mutant 23% | Hauler-Mutant 21% | Mutant Dominant Class ---------------- Scavenger-Mutant | -10/Materials Scavenger-Mutant | -10/Mines Hauler-Mutant | -9/Materials Scavenger-Mutant | -9/Mines Scavenger-Mutant | -9/Exiles Resources | -11 -10 -10 -9 -9 -9 ----------- Run | Scr Mat Min Mat Min Exi Matter Collected 1062 | 222 156 21 434 87 142 Remotely . | . . . . . . Salvage Created 2373 | 69 372 163 1430 308 31 Parts 163 | 3 31 9 100 20 . Haulers Intercepted 7 | . 1 . 6 . . Recyclers Shooed 6 | . 2 2 1 1 . Parts Field Recycled . | . . . . . . Retrieved Matter . | . . . . . . Parts Self-Destructed . | . . . . . . Prevented . | . . . . . . Kills | -11 -10 -10 -9 -9 -9 ------- Run | Scr Mat Min Mat Min Exi Combat Hostiles Destroyed 46 | . 7 5 25 7 2 Guns 46 | . 7 5 25 7 2 Classes Destroyed 11 | 1 4 . 5 . 1 Worker 3 | . . . 3 . . Builder 1 | . . . 1 . . Hauler 7 | . 1 . 6 . . Recycler 7 | 1 1 1 2 2 . Operator 1 | . . . 1 . . Watcher 3 | . 1 . 2 . . Swarmer 22 | . 3 3 10 6 . Grunt 16 | . 4 2 9 1 . Duelist 2 | . . . 2 . . Sentry 4 | . . . 4 . . Assembled 2 | . . . . . 2 Best Kill Streak 8 | 1 3 4 8 7 2 Combat Bots Only 6 | . 3 3 4 6 2 Max Kills in Single Turn 2 | 1 1 1 2 1 1 Gunslinging 1 | . . . 1 . . Exploded . | . . . . . . Melee . | . . . . . . Uniques/NPCs Destroyed . | . . . . . . Combat | -11 -10 -10 -9 -9 -9 -------- Run | Scr Mat Min Mat Min Exi Damage Taken 2775 | . 331 405 739 132 1168 Core 502 | . 50 43 115 15 279 Absorbed by Shields . | . . . . . . Core Remaining (%) 81 | 100 . 62 . . . Volleys Fired 164 | 3 42 14 81 16 8 Largest 2 | 2 2 2 2 2 2 Hottest 85 | 40 85 85 76 76 46 Shots Fired 326 | 6 83 28 162 32 15 Gun 326 | 6 83 28 162 32 15 Cannon . | . . . . . . Launcher . | . . . . . . Special . | . . . . . . Kinetic 197 | 6 55 14 83 24 15 Thermal 129 | . 28 14 79 8 . Explosive . | . . . . . . Electromagnetic . | . . . . . . Robot Hit Streak 27 | 2 14 14 10 27 7 Robot Miss Streak 6 | 1 6 2 4 . 2 Penetration Max . | . . . . . . Secondary Targets 7 | . 1 1 5 . . Max Gunslinging Chain 1 | . 1 1 1 . . Shots Hit Robots 217 | 3 55 20 99 26 14 Core Hits 101 | 2 23 10 52 11 3 Critical Hits . | . . . . . . Critical Kills . | . . . . . . Critical Parts Destroyed . | . . . . . . Melee Attacks 3 | . . . . . 3 Impact . | . . . . . . Slashing 3 | . . . . . 3 Piercing . | . . . . . . Sneak Attacks . | . . . . . . Combat Hostiles . | . . . . . . Follow-up Attacks . | . . . . . . Damage Inflicted 3008 | 21 559 235 1565 410 218 Guns 2934 | 21 559 235 1565 410 144 Cannons . | . . . . . . Explosions . | . . . . . . Melee 74 | . . . . . 74 Ramming . | . . . . . . Kinetic 1327 | 21 322 64 507 269 144 Thermal 1607 | . 237 171 1058 141 . Explosive . | . . . . . . Electromagnetic . | . . . . . . Impact . | . . . . . . Slashing 74 | . . . . . 74 Piercing . | . . . . . . Highest Corruption 8 | . . . . . 8 Average Corruption 7 | . . . . . 7 Corruption Purged . | . . . . . . Overload Shots . | . . . . . . Overflow Damage . | . . . . . . Projectiles . | . . . . . . Explosions . | . . . . . . Melee . | . . . . . . Knockbacks . | . . . . . . Impact . | . . . . . . Kinetic . | . . . . . . Secondary . | . . . . . . Self-Inflicted Damage . | . . . . . . Shots . | . . . . . . Rammed . | . . . . . . Targets Rammed . | . . . . . . Kicked . | . . . . . . Crushed . | . . . . . . Highest Temperature 294 | . 102 294 144 60 . Average Temperature 46 | . 31 112 38 28 . Received Heat Transfer 321 | . 99 33 171 18 . Siege Activations . | . . . . . . Robots Corrupted . | . . . . . . Combat Hostiles . | . . . . . . Parts Fried . | . . . . . . Impact Corruptions . | . . . . . . Robots Melted . | . . . . . . Combat Hostiles . | . . . . . . Parts Melted 1 | . 1 . . . . Heat Transferred 3497 | . 537 407 2257 296 . Parts Sabotaged . | . . . . . . Parts Stolen . | . . . . . . Parts Stripped . | . . . . . . Power Chain Reactions . | . . . . . . Missiles Intercepted . | . . . . . . Alert | -11 -10 -10 -9 -9 -9 ------- Run | Scr Mat Min Mat Min Exi Peak Influence 495 | 5 105 153 495 327 . Initial 192 | . 3 23 39 192 . Average 168 | 2 49 104 243 235 . Maximum Alert Level 2 | . . . 2 1 . Low Security (%) 61 | 100 100 100 38 32 . Level 1 33 | . . . 47 67 . Level 2 5 | . . . 14 . . Level 3 . | . . . . . . Level 4 . | . . . . . . Level 5 . | . . . . . . High Security . | . . . . . . Max Security . | . . . . . . Squads Dispatched 3 | . . . 3 . . Investigation 1 | . . . 1 . . Extermination . | . . . . . . Reinforcement 2 | . . . 2 . . Assault . | . . . . . . Garrison . | . . . . . . Intercept . | . . . . . . Construction Impeded . | . . . . . . Haulers Reinforced . | . . . . . . Stealth | -11 -10 -10 -9 -9 -9 --------- Run | Scr Mat Min Mat Min Exi Distress Signals 4 | . 1 . 3 . . Communications Jammed . | . . . . . . Distress Signals . | . . . . . . Times Spotted 74 | . 12 8 37 9 8 Peak Tracking Total 9 | . 3 3 5 3 9 Tactical Retreats 2 | . . . 2 . . Traps | -11 -10 -10 -9 -9 -9 ------- Run | Scr Mat Min Mat Min Exi Traps Triggered 1 | . . . 1 . . Indirectly . | . . . . . . Trap Hack Attempts . | . . . . . . Triggered . | . . . . . . Disarmed . | . . . . . . Reprogrammed . | . . . . . . Reused . | . . . . . . Traps Extracted . | . . . . . . Installed . | . . . . . . Triggered . | . . . . . . Machines | -11 -10 -10 -9 -9 -9 ---------- Run | Scr Mat Min Mat Min Exi Machines Disabled 2 | . . . . . 2 Max in Single Turn 1 | . . . . . 1 Machines Sabotaged . | . . . . . . Garrisons Compromised . | . . . . . . Overloaded Fab Kills . | . . . . . . Fab Network Shutdowns . | . . . . . . Hacking | -11 -10 -10 -9 -9 -9 --------- Run | Scr Mat Min Mat Min Exi Machines Accessed 14 | . 10 . 1 1 2 Terminals 8 | . 8 . . . . Fabricators . | . . . . . . Repair Stations 1 | . 1 . . . . Recycling Units 1 | . 1 . . . . Scanalyzers 1 | . . . 1 . . Garrison Access . | . . . . . . Total Hacks 32 | . 26 . 3 1 2 Successful 14 | . 9 . 2 1 2 Failed 17 | . 16 . 1 . . Catastrophic 1 | . 1 . . . . Database Lockouts 1 | . 1 . . . . Manual 12 | . 11 . . . 1 Terminals 20 | . 20 . . . . Fabricators . | . . . . . . Repair Stations 1 | . 1 . . . . Recycling Units 5 | . 5 . . . . Scanalyzers 3 | . . . 3 . . Garrison Access . | . . . . . . Terminal Hacks 8 | . 5 . . 1 2 Record 1 | . . . . . 1 Robot Analysis 2 | . 2 . . . . Prototype ID Bank 2 | . 2 . . . . Open Door 1 | . . . . 1 . Hauler Manifests 1 | . 1 . . . . EX-Prototype ID Bank 1 | . . . . . 1 Fabricator Hacks . | . . . . . . Repair Station Hacks . | . . . . . . Recycling Unit Hacks 2 | . 2 . . . . Retrieve Components 2 | . 2 . . . . Scanalyzer 2 | . . . 2 . . Insert Component 1 | . . . 1 . . Analyze 1 | . . . 1 . . Garrison Access Hacks . | . . . . . . Unauthorized Hacks 2 | . 2 . . . . Terminals 2 | . 2 . . . . Botnet 2 | . 2 . . . . Fabricators . | . . . . . . Repair Stations . | . . . . . . Recycling Units . | . . . . . . Scanalyzers . | . . . . . . Garrison Access . | . . . . . . Data Cores Recovered . | . . . . . . Used . | . . . . . . Hacking Detections 9 | . 8 . 1 . . Full Trace Events . | . . . . . . Feedback Events . | . . . . . . Feedback Blocked . | . . . . . . Robot Schematics Acquired . | . . . . . . Robots Built . | . . . . . . Matter . | . . . . . . Time . | . . . . . . Total Robot Build Rating . | . . . . . . Part Schematics Acquired . | . . . . . . Parts Built . | . . . . . . Matter . | . . . . . . Time . | . . . . . . Total Part Build Rating . | . . . . . . Parts Repaired . | . . . . . . Time . | . . . . . . Parts Recycled . | . . . . . . Recycled Matter . | . . . . . . Retrieved Matter . | . . . . . . Retrieved Components 10 | . 10 . . . . Parts Scanalyzed 1 | . . . 1 . . Part Schematics Acquired . | . . . . . . Parts Damaged . | . . . . . . Bothacking | -11 -10 -10 -9 -9 -9 ------------ Run | Scr Mat Min Mat Min Exi Used RIF Installer . | . . . . . . Robots Hacked . | . . . . . . Non-combat . | . . . . . . Combat . | . . . . . . Robot Hacks Applied . | . . . . . . Relay Couplers Released . | . . . . . . Robots Rewired . | . . . . . . Allies Hacked . | . . . . . . Hacks Repelled . | . . . . . . Allies | -11 -10 -10 -9 -9 -9 -------- Run | Scr Mat Min Mat Min Exi Total Allies 4 | . . . . 4 . Largest Group 4 | . . . . 4 3 Highest-Rated Group 71 | . . . . 71 40 Highest-Rated Ally 31 | . . . . 31 16 Total Orders 3 | . . . . . 3 STAY 3 | . . . . . 3 Ally Attacks 15 | . . . . 2 13 Total Damage 115 | . . . . 44 71 Kills 2 | . . . . 2 . Allies Corrupted . | . . . . . . Allies Melted . | . . . . . . Intel | -11 -10 -10 -9 -9 -9 ------- Run | Scr Mat Min Mat Min Exi Robot Analysis Total 2 | . 2 . . . . Derelict Logs Recovered 2 | . . . . 2 . Drone Launches . | . . . . . . Drone Recoveries . | . . . . . . Exploration | -11 -10 -10 -9 -9 -9 ------------- Run | Scr Mat Min Mat Min Exi Turns Passed 4124 | 14 1033 198 1169 743 967 Spaces Moved 1924 | 4 526 87 430 376 501 Core . | . . . . . . Treads 1656 | . 266 83 430 376 501 Legs 264 | 4 260 . . . . Wheels 4 | . . 4 . . . Hover . | . . . . . . Flight . | . . . . . . Fastest Speed 120 | 120 120 120 180 180 160 Average Speed 175 | 120 162 177 180 180 179 Slowest Speed 220 | 120 180 180 220 180 180 Overloaded Moves . | . . . . . . Propulsion Burnouts . | . . . . . . Robots Hopped . | . . . . . . Cave-ins Triggered . | . . . . . . Exploration Rate (%) 50 | 2 84 32 42 78 67 Regions Visited 5 Branch Regions 3 Pre-discovered Areas 1 | . . . . . 1 Known Exits Taken . | . . . . . . Unknown Exits Taken 5 | 1 1 1 1 1 . Scrap Searched . | . . . . . . Spaces Dug . | . . . . . . Terrain Destroyed . | . . . . . . Melee . | . . . . . . Projectile . | . . . . . . AOE . | . . . . . . Terrain Rammed . | . . . . . . Walls Destroyed . | . . . . . . Machines Disabled . | . . . . . . Actions | -11 -10 -10 -9 -9 -9 --------- Run | Scr Mat Min Mat Min Exi Total 2385 | 7 633 106 671 412 556 Wait 147 | . 29 1 97 13 7 Move 1919 | 3 525 86 429 375 501 Hop . | . . . . . . Pick Up 59 | . 18 2 26 4 9 Fast Attach 9 | 1 3 . 4 . 1 Attach 17 | . 1 2 8 1 5 Detach . | . . . . . . Swap 12 | . 4 . 7 1 . Drop 55 | . 11 1 19 2 22 Fire 164 | 3 42 14 81 16 8 Melee 3 | . . . . . 3 Ram . | . . . . . . Kick . | . . . . . . Crush . | . . . . . . Escape Stasis . | . . . . . . Rewire . | . . . . . . Trap . | . . . . . . Miscellaneous . | . . . . . . Route ------- -11/Scrapyard -10/Materials (discovered 4 exits: *Mat x2 / [*Min x2]) -10/Mines (discovered 2 exits: *Mat x2) -9/Materials (discovered 3 exits: [*Mat] / *Min / [*Sto]) -9/Mines (discovered 3 exits: [*Mat x2] / *Exi) -9/Exiles (discovered 1 exit: [*Min]) History --------- Turn | Location | Event 10 | -11/Scrapyard | Discovered new exit (range 3) 15 | -11/Scrapyard | Entered Materials 246 | -10/Materials | Discovered new exit (range 10) 320 | -10/Materials | Build established: Mutant 323 | -10/Materials | Central database locked down 406 | -10/Materials | Discovered new exit (range 15) 518 | -10/Materials | Discovered new exit (range 16) 613 | -10/Materials | Discovered new exit (range 10) 836 | -10/Materials | Build established: Scavenger-Mutant 1048 | -10/Materials | Entered Mines 1093 | -10/Mines | Discovered new exit (range 15) 1225 | -10/Mines | Assembled infested the area 1230 | -10/Mines | Assisted by a Guerilla fighting off Assembled 1239 | -10/Mines | Discovered new exit (range 7) 1246 | -10/Mines | Entered Materials 1246 | -9/Materials | Evolved 2 slots: Utility x2 1255 | -9/Materials | Discovered new exit (range 7) 1277 | -9/Materials | Lost 5 parts (1p2n2w) 1544 | -9/Materials | Build established: Mutant 1790 | -9/Materials | Discovered new exit (range 16) 1881 | -9/Materials | Build established: Hauler-Mutant 2334 | -9/Materials | Discovered new exit (range 16) 2415 | -9/Materials | Entered Mines 2587 | -9/Mines | Met a Derelict who couldn't figure out how to use a Trap Extractor 2611 | -9/Mines | Learned Materials trap positions 2615 | -9/Mines | Discovered new exit (range 8) 2714 | -9/Mines | Discovered new exit (range 5) 2755 | -9/Mines | Received a Mining Laser from a helpful Derelict 2841 | -9/Mines | Build established: Scavenger-Mutant 3003 | -9/Mines | Learned 2 Materials zone layouts 3003 | -9/Mines | Assisted by bots powering up and referring to "LRC-V3" 3142 | -9/Mines | Deemed a non-threat by the Exiles lab entrance 3142 | -9/Mines | Discovered new exit (range 5) 3158 | -9/Mines | Entered Exiles 3158 | -9/Exiles | Accompanied by 3 allies 3185 | -9/Exiles | Discovered new exit (range 15) 3207 | -9/Exiles | Met 8R-AWN 3232 | -9/Exiles | Met EX-HEX 3310 | -9/Exiles | Met EX-DEC 3338 | -9/Exiles | Learned location of Zion (-6) 3463 | -9/Exiles | Met EX-BIN 3488 | -9/Exiles | Aligned with FarCom system 3490 | -9/Exiles | Given EX-Vault access code 3531 | -9/Exiles | Opened EX-Vault 3541 | -9/Exiles | Found Gui. Plasma Cannon 3579 | -9/Exiles | Warned to stay clear of 0b10 Research branches 4087 | -9/Exiles | Attacked by the Exiles 4106 | -9/Exiles | Core integrity fell below 50% 4116 | -9/Exiles | Core integrity fell below 20% 4125 | -9/Exiles | Destroyed by as-17840 with Assembled Heavy Rifle Last Messages --------------- 04109_ Lgt. Treads destroyed. 04109_ Penetrated by HV Slug. 04109_ Hvy. Assault Rifle destroyed. 04110_ Armor Integrity Analyzer destroyed. 04110_ System corrupted by crushing effect (+4). 04112_ Extracted 10 matter. 04112_ Penetrated by HV Slug. 04114_ Ion Engine destroyed. 04115_ Penetrated by HV Slug. 04115_ HV Slug penetrates as-22966. 04118_ Extracted 10 matter. 04119_ Penetrated by HV Slug. 04119_ HV Slug penetrates as-22966. 04119_ as-22966 suffers critical hit. 04119_ Penetrated by HV Slug. 04119_ HV Slug penetrates as-22966. 04119_ as-22966 destroyed. 04121_ Penetrated by HV Slug. 04123_ Critical hit. 04123_ Lgt. Treads destroyed. Map ----- +----------------------------------------------------+ | """#?????????????????????????????????????? | | """#?????????????????????????????????????? | | """"?????????????????????????????????????? | | """#?????????????????????????????????????? | | "X" """"?????????????????????????????????????? | | """ #?????????????????????????????????????? | | """""""""#?????????????????????????????????????? | | ###########?????????????????????????????????????? | | #???????????????????????????????????????????????? | | #???????????????????????????????????????????????? | | ##??????????????????????????????????????????????? | | ##???###########???????????????????????????????? | | #####"""" """"##??????????????????????????????? | | " """ """"##?????????????????????????????? | | "" " #?????????????????????????????? | | " """#?????????????????????????????? | | a"#???????????#####?????????????? | | " "##?????????##" #?????????????? | | "###???????#" #?????????????# | | ""#??????##" ##????????????# | | " ! "#????### ###????????### | | ##""" %= ##???# ########## | | ?##""" [ !%##?## #""""## | | ??#"""" =!### | | ?##"" %%! ## | | ##"""" @ #### | | "" a g ""#?#"""""#### | | #"""##?#######??#### | | a % ######??????????????##### | | a ##???????????????????????# | | " a ##????????????????????????? | | "" """ "#?????????????????????????? | | #""" " " ""#" "##?????????????????????????? | | #####""" """##""" " ##??????????????????????????? | | ????###""""###########???????????????????????????? | | ###???######?????????????????????????????????????? | | "!#??????????????????????????????????????????????? | | #??????????????????????????????????????????????? | | "#??????????????????????????????????????????????? | | "#??????????????????????????????????????????????? | | ###??????????????????????????????????????????????? | | ?????????????????????????????????????????????????? | | ?????????????????????????????????????????????????? | | ?????????????????????????????????????????????????? | | ?????????????????????????????????????????????????? | | ?????????????????????????????????????????????????? | | ?????????????????????????????????????????????????? | | ?????????????????????????????????????????????????? | | ?????????????????????????????????????????????????? | | ?????????????????????????????????????????????????? | +----------------------------------------------------+ Best States ------------- Heat Dissipation 28 Energy Generation 14 Energy Capacity 265 Matter Stores 300 Matter Capacity 300 Sight Range 16 Terrain Scan Density 10 Armor Coverage 150 Evasion (%) 40 Targeting Accuracy 6 Melee Accuracy 5 Armor Integrity Analysis 33 Recoil Reduction 2 Item Schematics ----------------- None Robot Schematics ------------------ None Fabricated ------------ Nothing Alien Tech Used ----------------- None Achievements -------------- None Challenges ------------ None Game ------ Seed TeslaDecoyCoupler Manual? 0 Play Time 00:27:46 Cumulative 724.2 hours Start 2020.09.16 @ 13:05:45 End 2020.09.16 @ 13:33:04 Sessions 1 Manual Loads 0 Difficulty Rogue Special Mode None Game No. 469 Rogue 469 Adventurer 0 Explorer 0 Win Type - Total 109 Types 75/6/8/10/5/1/4/0/0 Lore% 94 Gallery% 94 Achievement% 81 Wizard Run 0 Options --------- ASCII 0 Keyboard 0 Movement Numpad Keybinds 0 Fullscreen 2 Font 18/SmallcapsGlow Map View 76x50 Tactical HUD 1 Map Filters NONE Filters NONE Steam 1 RUN: 16890c34-1938-45fd-a21d-3a478fee5aa6